bitfinex-derivatives/quotes_SOLF0:USTF0_20220106
["timestamp","ask_amount","ask_price","bid_price","bid_amount"]
[1641473558948,27.66479,147.91,147.83,24.0]
[1641473559144,27.66479,147.91,147.83,20.0]
[1641473560245,27.66479,147.91,147.81,6.816]
[1641473560446,27.66479,147.91,147.82,20.0]
[1641473560847,27.66479,147.91,147.81,4.597]
[1641473561046,27.66479,147.91,147.8,34.41858056]
[1641473563147,3.9999,147.9,147.8,6.75379056]
[1641473563347,3.9999,147.89,147.78,10.0]
[1641473563550,20.02074931,147.91,147.78,10.0]
[1641473563949,20.02074931,147.91,147.85,37.42762614]
[1641473564150,24.02064931,147.91,147.85,37.42762614]
[1641473564351,20.02074931,147.91,147.85,37.42762614]
[1641473565551,20.02074931,147.91,147.86,37.42762614]
[1641473567552,20.02074931,147.91,147.87,37.42762614]
[1641473570657,20.02074931,147.91,147.9,14.33240234]
[1641473570856,20.02074931,147.91,147.9,19.28440234]
[1641473571257,20.02074931,147.91,147.9,6.36884263]
[1641473572257,79.24628439,147.98,147.9,6.36884263]
[1641473572457,78.85868439,147.98,147.9,6.36884263]
[1641473573059,3.35980268,147.97,147.93,14.32949272]
[1641473573262,3.35980268,147.97,147.93,19.52349272]
[1641473573662,3.35980268,147.97,147.94,24.0]
[1641473573860,27.66479,147.99,147.96,4.0]
[1641473574060,27.66479,147.99,147.96,5.137]
[1641473574561,3.9999,147.97,147.96,5.137]
[1641473574761,3.9999,147.98,147.96,0.0001]
[1641473574961,7.35974726,147.98,147.93,14.32949272]
[1641473575164,3.35984726,147.98,147.93,14.32949272]
[1641473575360,7.35974726,147.98,147.93,14.32949272]
[1641473575761,3.35984726,147.98,147.93,14.32949272]
[1641473575962,27.66479,147.94,147.93,14.32949272]
[1641473576162,27.66479,147.94,147.92,14.32949272]
[1641473578765,27.66479,147.94,147.91,14.32949272]
[1641473581069,27.66479,147.94,147.9,14.32949272]
[1641473583571,27.66479,147.94,147.91,14.32949272]
[1641473584371,27.66479,147.94,147.9,15.74608405]
[1641473585173,27.66479,147.94,147.86,37.42762614]
[1641473585374,3.9999,147.93,147.86,37.42762614]
[1641473585573,31.66469,147.94,147.86,37.42762614]
[1641473585773,3.9999,147.91,147.86,37.42762614]
[1641473585974,27.66479,147.88,147.86,37.42762614]
[1641473586476,27.66479,147.88,147.84,6.96367877]
[1641473587977,55.32958,147.88,147.84,6.96367877]
[1641473591881,55.32958,147.88,147.85,37.42762614]
[1641473592481,55.32958,147.88,147.84,18.37719204]
[1641473592482,55.32958,147.88,147.84,55.80481818]
[1641473593284,61.33458,147.88,147.84,55.80481818]
[1641473593482,65.33448,147.88,147.84,55.80481818]
[1641473593987,27.66479,147.85,147.84,55.80481818]
[1641473594185,27.66479,147.85,147.83,37.42762614]
[1641473595485,27.66479,147.85,147.82,37.42762614]
[1641473596087,55.32958,147.85,147.82,37.42762614]
[1641473596489,55.32958,147.85,147.81,37.42762614]
[1641473597391,55.32958,147.85,147.82,37.42762614]
[1641473597589,27.66479,147.85,147.82,37.42762614]
[1641473598590,4.77879065,147.89,147.82,37.42762614]
[1641473599190,67.43059065,147.9,147.84,37.42762614]
[1641473599789,67.43059065,147.9,147.84,43.78862614]
[1641473599991,95.09538065,147.9,147.84,43.78862614]
[1641473600392,32.44358065,147.9,147.84,43.78862614]
[1641473600991,27.66479,147.9,147.86,37.42762614]
[1641473603393,27.66479,147.9,147.85,41.42762614]
[1641473603594,27.66479,147.9,147.86,4.0]
[1641473603794,32.44358065,147.92,147.85,41.42762614]
[1641473604695,32.44358065,147.92,147.88,37.42762614]
[1641473604696,27.66479,147.92,147.88,37.42762614]
[1641473605698,27.66479,147.92,147.87,37.42762614]
[1641473608205,32.44358065,147.92,147.86,37.42762614]
[1641473609008,4.77879065,147.92,147.86,37.42762614]
[1641473609209,4.77879065,147.93,147.86,37.42762614]
[1641473609908,4.77879065,147.93,147.88,4.0]
[1641473610112,4.77879065,147.93,147.86,43.79162614]
[1641473610912,27.66479,147.94,147.88,37.42762614]
[1641473611711,27.66479,147.94,147.89,37.42762614]
[1641473612511,27.66479,147.94,147.88,37.42762614]
[1641473615915,27.66479,147.94,147.93,14.33051623]
[1641473617116,4.77879065,147.96,147.93,14.33051623]
[1641473618620,32.44358065,147.97,147.93,14.33051623]
[1641473620019,32.44358065,147.97,147.94,14.33051623]
[1641473620619,32.44358065,147.97,147.94,19.26051623]
[1641473620822,32.44358065,147.97,147.94,4.93]
[1641473621023,4.77879065,147.97,147.94,4.93]
[1641473621222,27.66479,147.99,147.96,24.0]
[1641473621421,14.33051623,148.0,147.98,4.0]
[1641473621628,14.33051623,148.0,147.98,6.825]
[1641473622021,18.33041623,148.04,147.98,6.825]
[1641473622221,25.0807875,148.04,147.98,6.825]
[1641473622421,27.66479,148.0,147.98,6.825]
[1641473622623,27.66479,148.0,147.94,37.42762614]
[1641473623322,27.66479,148.0,147.94,14.32821577]
[1641473623522,3.9999,147.99,147.94,14.32821577]
[1641473623722,27.66479,148.0,147.94,14.32821577]
[1641473623922,3.9999,147.98,147.94,14.32821577]
[1641473624123,6.75242243,147.99,147.93,14.32821577]
[1641473624522,31.66469,147.97,147.93,14.32821577]
[1641473624924,27.66479,147.97,147.93,14.32821577]
[1641473625125,27.66479,147.97,147.91,24.28821577]
[1641473625323,92.13489,147.97,147.91,24.28821577]
[1641473626022,3.36126353,147.96,147.92,15.74384708]
[1641473626424,3.9999,147.95,147.92,15.74384708]
[1641473626624,14.11518217,147.96,147.92,15.74384708]
[1641473626825,10.11528217,147.96,147.92,15.74384708]
[1641473627123,3.9999,147.95,147.92,15.74384708]
[1641473627329,3.9999,147.93,147.89,51.76117031]
[1641473627527,3.9999,147.93,147.89,14.33354417]
[1641473627727,6.7558438,147.92,147.89,14.33354417]
[1641473628127,6.7558438,147.92,147.87,1.41544066]
[1641473628527,34.4206338,147.92,147.87,1.41544066]
[1641473631531,44.8175338,147.92,147.87,1.41544066]
[1641473631732,3.9999,147.9,147.87,1.41544066]
[1641473631933,44.8175338,147.92,147.87,1.41544066]
[1641473632332,3.9999,147.91,147.87,1.41544066]
[1641473632633,27.66479,147.88,147.87,1.41544066]
[1641473633034,27.66479,147.88,147.81,47.58762614]
[1641473633933,27.66479,147.88,147.83,37.42762614]
[1641473634132,3.9999,147.87,147.83,37.42762614]
[1641473634532,27.66479,147.88,147.83,37.42762614]
[1641473634734,27.66479,147.88,147.82,37.42762614]
[1641473635634,27.66479,147.88,147.81,37.42762614]
[1641473636437,27.66479,147.88,147.81,41.42762614]
[1641473636936,27.66479,147.88,147.85,4.0]
[1641473637136,27.66479,147.92,147.85,9.704]
[1641473637538,27.66479,147.92,147.85,5.704]
[1641473637737,27.66479,147.92,147.85,9.704]
[1641473638139,66.7543,147.96,147.85,9.704]
[1641473638542,27.66479,147.95,147.86,37.42762614]
[1641473639440,27.66479,147.95,147.87,37.42762614]
[1641473640442,27.66479,147.95,147.86,37.42762614]
[1641473641243,27.66479,147.95,147.87,37.42762614]
[1641473641942,27.66479,147.95,147.88,37.42762614]
[1641473642542,27.66479,147.95,147.87,37.42762614]
[1641473644245,27.66479,147.95,147.9,4.0]
[1641473644445,27.66479,147.95,147.9,5.18]
[1641473644645,66.7543,147.96,147.9,5.18]
[1641473645646,66.7543,147.96,147.88,44.39130491]
[1641473646045,3.9999,147.95,147.88,44.39130491]
[1641473646248,70.7542,147.96,147.88,44.39130491]
[1641473646446,77.50821864,147.96,147.88,44.39130491]
[1641473646647,27.66479,147.92,147.88,6.96367877]
[1641473647448,27.66479,147.92,147.85,37.42762614]
[1641473647449,31.66469,147.92,147.85,37.42762614]
[1641473647846,27.66479,147.92,147.85,37.42762614]
[1641473648250,27.66479,147.92,147.84,10.16]
[1641473648549,55.32958,147.92,147.84,10.16]
[1641473648751,65.6735,147.91,147.84,10.16]
[1641473650452,65.6735,147.91,147.85,37.42762614]
[1641473651254,65.6735,147.91,147.84,10.16]
[1641473652454,65.6735,147.91,147.86,4.0]
[1641473652654,55.32958,147.92,147.86,4.0]
[1641473652853,55.32958,147.92,147.87,4.0]
[1641473653253,27.66479,147.92,147.87,4.0]
[1641473653453,65.574,147.96,147.87,4.0]
[1641473654658,27.66479,147.95,147.87,4.0]
[1641473656259,27.66479,147.95,147.86,44.39130491]
[1641473656458,27.66479,147.95,147.88,4.0]
[1641473656657,27.66479,147.95,147.92,4.0]
[1641473657056,27.66479,147.97,147.92,4.0]
[1641473657658,27.66479,147.97,147.93,14.32793384]
[1641473658659,27.66479,147.97,147.94,14.32793384]
[1641473659359,27.66479,147.97,147.93,14.32793384]
[1641473659560,34.37279,147.97,147.93,14.32793384]
[1641473659960,34.37279,147.97,147.93,3.384e-05]
[1641473660158,34.37279,147.97,147.9,37.42762614]
[1641473660159,38.37269,147.97,147.9,37.42762614]
[1641473660359,18.32783384,147.96,147.86,37.42762614]
[1641473660760,27.66479,147.9,147.86,37.42762614]
[1641473660961,32.97379,147.9,147.86,37.42762614]
[1641473662061,32.97379,147.9,147.8,9.9]
[1641473662664,32.97379,147.9,147.8,13.72292448]
[1641473663065,32.97379,147.9,147.8,17.72292448]
[1641473663465,69.4115,147.89,147.81,4.0]
[1641473663665,27.66479,147.9,147.83,4.0]
[1641473664365,66.7794,147.94,147.88,4.0]
[1641473664566,6.75401864,147.96,147.88,5.339]
[1641473664766,27.66479,147.95,147.88,5.339]
[1641473665369,27.66479,147.95,147.84,31.48771448]
[1641473665568,64.7042,147.94,147.84,31.48771448]
[1641473665771,6.75059912,148.03,147.93,4.0]
[1641473665968,63.3038,148.02,147.91,24.0]
[1641473666168,65.5499,148.06,147.91,24.0]
[1641473666369,75.05381563,148.05,147.9,6.74923227]
[1641473666774,27.66479,147.98,147.85,6.75128274]
[1641473666972,68.3172,147.97,147.85,6.75128274]
[1641473667973,68.3172,147.97,147.86,4.0]
[1641473668174,68.3172,147.97,147.85,6.75128274]
[1641473668877,27.66479,147.94,147.85,6.75128274]
[1641473669876,27.66479,147.94,147.85,10.75128274]
[1641473670077,27.66479,147.94,147.85,6.75128274]
[1641473670477,32.55679,147.94,147.85,6.75128274]
[1641473671679,36.55669,147.94,147.85,6.75128274]
[1641473671880,32.55679,147.94,147.85,6.75128274]
[1641473672179,32.55679,147.94,147.85,10.75128274]
[1641473672383,27.66479,147.94,147.86,24.0]
[1641473673282,27.66479,147.94,147.87,4.0]
[1641473673683,68.3172,147.97,147.87,4.0]
[1641473673885,68.3172,147.97,147.85,6.75128274]
[1641473674084,73.8162,147.97,147.85,6.75128274]
[1641473674286,73.8162,147.97,147.88,4.0]
[1641473674485,73.8162,147.97,147.87,4.0]
[1641473674686,73.8162,147.97,147.86,24.0]
[1641473674886,27.66479,147.95,147.86,24.0]
[1641473675687,27.66479,147.98,147.92,24.0]
[1641473675887,27.66479,147.98,147.92,30.572]
[1641473676286,27.66479,147.98,147.93,4.0]
[1641473676687,27.66479,147.98,147.92,20.0]
[1641473677288,27.66479,147.98,147.93,1.41299885]
[1641473678389,27.66479,147.98,147.9,38.16952261]
[1641473679489,27.66479,147.98,147.9,1.41299885]
[1641473680290,3.35907349,147.97,147.89,45.11831308]
[1641473680490,3.35907349,147.97,147.91,4.0]
[1641473680691,3.35907349,147.97,147.88,46.53131193]
[1641473681092,3.35907349,147.97,147.9,24.0]
[1641473681291,27.66479,147.98,147.9,38.16952261]
[1641473681491,27.66479,147.98,147.9,62.16952261]
[1641473681891,27.66479,147.98,147.9,38.16952261]
[1641473682291,32.43611535,147.98,147.97,4.77132535]
[1641473683491,27.66479,148.02,147.97,4.77132535]
[1641473683692,27.66479,148.02,147.97,11.14932535]
[1641473683991,38.16952261,148.05,147.97,35.14932535]
[1641473684490,38.16952261,148.05,147.97,6.378]
[1641473684692,3.35697939,148.05,147.98,1.41299885]
[1641473684992,27.66479,148.03,147.98,1.41299885]
[1641473685891,27.66479,148.03,147.94,27.66479]
[1641473686091,27.66479,148.03,147.95,1.41310497]
[1641473686791,27.66479,148.03,147.95,25.41310497]
[1641473686992,27.66479,148.03,147.95,30.17210497]
[1641473687193,27.66479,148.03,147.95,6.17210497]
[1641473687392,3.35697939,148.05,147.96,6.74650025]
[1641473687793,3.35697939,148.05,147.95,6.17210497]
[1641473687995,3.35697939,148.02,147.96,1.41310497]
[1641473688994,27.66479,148.02,147.96,1.41310497]
[1641473689194,27.66479,148.02,147.95,8.36182469]
[1641473689994,3.3567165,148.01,147.95,8.36182469]
[1641473690995,14.3102236,148.02,147.96,20.0]
[1641473691594,14.3102236,148.02,147.95,1.41310497]
[1641473691797,67.2662,148.03,147.97,14.3102236]
[1641473692801,81.57499694,148.03,147.95,21.25908716]
[1641473693196,14.30879694,148.03,147.95,21.25908716]
[1641473693396,14.30879694,148.03,147.95,25.25908716]
[1641473693595,14.30879694,148.03,147.95,21.25908716]
[1641473693798,41.97358694,148.05,147.97,14.3102236]
[1641473694898,14.30879694,148.05,147.99,20.0]
[1641473695099,14.30879694,148.05,148.02,24.0]
[1641473695299,103.74542261,148.08,148.02,24.0]
[1641473695300,65.5759,148.08,148.02,24.0]
[1641473695499,65.5759,148.08,148.02,20.0]
[1641473695698,65.5759,148.08,148.0,6.74445269]
[1641473696198,65.5759,148.08,147.99,20.0]
[1641473696401,71.4739,148.08,147.99,20.0]
[1641473697000,27.66479,148.07,147.97,55.32958]
[1641473699103,27.66479,148.04,147.97,55.32958]
[1641473699303,32.48579,148.04,147.97,55.32958]
[1641473699503,32.48579,148.04,147.97,27.66479]
[1641473701007,27.66479,148.01,147.94,37.68479]
[1641473702207,41.97358694,148.01,147.95,21.26803697]
[1641473703110,27.66479,148.01,147.96,14.3102236]
[1641473704810,27.66479,148.01,147.95,21.26803697]
[1641473705310,27.66479,148.01,147.97,20.0]
[1641473705912,27.66479,148.01,147.96,14.3102236]
[1641473706313,27.66479,148.01,147.99,14.3102236]
[1641473707012,27.66479,148.01,147.98,14.3102236]
[1641473713823,27.66479,148.01,147.97,14.3102236]
[1641473718833,27.66479,148.01,147.96,14.3102236]
[1641473719634,14.30879694,148.02,147.96,14.3102236]
[1641473719834,78.04359694,148.03,147.96,14.3102236]
[1641473720134,82.04349694,148.03,147.96,14.3102236]
[1641473720334,78.04359694,148.03,147.96,14.3102236]
[1641473720532,82.04349694,148.03,147.96,14.3102236]
[1641473720735,82.04349694,148.03,147.97,14.3102236]
[1641473721534,67.7347,148.03,147.97,14.3102236]
[1641473722335,67.7347,148.03,147.96,14.3102236]
[1641473722835,63.7348,148.03,147.96,14.3102236]
[1641473723235,67.7347,148.03,147.96,14.3102236]
[1641473723936,3.9999,148.02,147.96,14.3102236]
[1641473724536,3.9999,148.02,147.95,21.26803697]
[1641473725237,82.04349694,148.03,147.97,14.3102236]
[1641473725635,3.9999,148.02,147.97,14.3102236]
[1641473727537,3.9999,148.02,147.96,14.3102236]
[1641473727738,3.9999,147.97,147.96,14.3102236]
[1641473728037,8.5689,147.97,147.95,6.95781337]
[1641473728239,3.9999,147.96,147.93,38.16952261]
[1641473728537,8.5689,147.97,147.92,56.53709106]
[1641473729037,8.5689,147.97,147.92,66.39709106]
[1641473729238,3.9999,147.98,147.92,59.43912918]
[1641473729439,27.66479,147.95,147.92,9.86]
[1641473731644,3.36297142,147.94,147.93,1.41485059]
[1641473733247,27.66479,147.95,147.93,1.41485059]
[1641473734348,27.66479,147.97,147.93,1.41485059]
[1641473737151,3.36368779,147.96,147.93,1.41485059]
[1641473741555,7.36358779,147.96,147.93,1.41485059]
[1641473741755,3.36368779,147.96,147.93,1.41485059]
[1641473742559,27.66479,147.97,147.93,1.41485059]
[1641473743158,3.36417185,147.96,147.93,1.41485059]
[1641473744161,3.36417185,147.96,147.93,6.19256405]
[1641473744560,0.00417185,147.96,147.93,6.19256405]
[1641473745060,67.8743,147.99,147.93,1.41485059]
[1641473745260,4.77633015,147.98,147.93,1.41485059]
[1641473746964,67.8743,147.99,147.93,1.41485059]
[1641473746965,67.8743,147.99,147.97,4.77652839]
[1641473747261,31.66469,148.01,147.97,4.77652839]
[1641473747465,3.9999,148.0,147.97,4.77652839]
[1641473747863,31.66469,148.01,147.97,4.77652839]
[1641473748264,27.66479,148.01,147.97,4.77652839]
[1641473748463,27.66479,148.01,147.95,4.77652839]
[1641473749466,27.66479,148.01,147.97,4.77652839]
[1641473750267,27.66479,148.01,147.96,5.833]
[1641473751068,27.66479,148.01,147.96,10.60952839]
[1641473751870,27.66479,148.01,147.96,4.77652839]
[1641473752069,27.66479,148.01,147.98,4.77652839]
[1641473752870,27.66479,148.01,147.99,4.77652839]
[1641473754471,3.9999,148.0,147.99,4.77652839]
[1641473754670,3.9999,148.0,147.99,2.839e-05]
[1641473755274,3.9999,148.0,147.94,6.93160104]
[1641473755771,27.66479,147.98,147.94,6.93160104]
[1641473755971,27.66479,147.98,147.92,21.26575324]
[1641473756171,27.66479,147.98,147.92,9.86]
[1641473757571,32.33079,147.98,147.92,13.86]
[1641473757774,32.33079,147.98,147.92,9.86]
[1641473758473,32.33079,147.98,147.94,14.33008292]
[1641473758673,27.66479,147.98,147.94,14.33008292]
[1641473759074,3.9999,147.99,147.94,14.33008292]
[1641473759275,3.9999,147.99,147.93,14.33008292]
[1641473759475,14.33008292,148.0,147.93,14.33008292]
[1641473760982,41.99487292,148.01,147.94,14.33008292]
[1641473762383,27.66479,148.01,147.94,14.33008292]
[1641473763086,27.66479,148.01,147.96,14.33008292]
[1641473763287,22.571606,148.01,147.96,14.33008292]
[1641473764289,22.571606,148.01,147.95,14.33008292]
[1641473765089,36.89947087,148.01,147.94,41.99487292]
[1641473765788,40.89937087,148.01,147.94,41.99487292]
[1641473765988,36.89947087,148.01,147.94,41.99487292]
[1641473769794,3.9999,147.98,147.94,14.33008292]
[1641473769994,40.89937087,148.01,147.94,14.33008292]
[1641473770194,3.9999,148.0,147.93,14.33008292]
[1641473770896,3.9999,147.99,147.92,24.19008292]
[1641473771795,18.32776487,147.99,147.92,9.86]
[1641473772095,27.66479,147.98,147.92,9.86]
[1641473772697,14.32786487,147.99,147.92,24.19008292]
[1641473773497,3.9999,147.96,147.92,24.19008292]
[1641473774598,67.0993,147.97,147.92,24.19008292]
[1641473774798,63.0994,147.97,147.92,24.19008292]
[1641473775198,31.66469,147.98,147.92,24.19008292]
[1641473775199,27.66479,147.98,147.92,28.19008292]
[1641473775498,14.32786487,147.99,147.92,28.19008292]
[1641473776098,14.32786487,147.99,147.93,27.66479]
[1641473776499,3.9999,148.0,147.95,14.33008292]
[1641473777099,3.9999,147.99,147.95,14.33008292]
[1641473777499,3.9999,148.0,147.95,14.33008292]
[1641473777899,26.571506,148.01,147.95,14.33008292]
[1641473778099,27.66479,147.98,147.94,14.33008292]
[1641473778701,22.571606,148.01,147.94,14.33008292]
[1641473779301,14.32786487,148.0,147.94,14.33008292]
[1641473780102,22.571606,148.01,147.95,14.33008292]
[1641473780103,36.89947087,148.01,147.95,14.33008292]
[1641473781009,22.571606,148.01,147.95,14.33008292]
[1641473781503,36.89947087,148.01,147.94,14.33008292]
[1641473783204,36.89947087,148.01,147.95,14.33008292]
[1641473784809,3.36077952,148.0,147.95,14.33008292]
[1641473785808,7.36067952,148.0,147.95,14.33008292]
[1641473786409,36.89947087,148.01,147.94,14.33008292]
[1641473786410,3.36077952,147.99,147.94,14.33008292]
[1641473787210,3.36077952,148.0,147.94,14.33008292]
[1641473788010,3.36077952,148.0,147.95,14.33008292]
[1641473790915,3.36077952,148.0,147.96,14.33008292]
[1641473791617,3.36077952,148.0,147.95,14.33008292]
[1641473792215,3.36077952,148.0,147.96,14.33008292]
[1641473795017,3.36077952,148.0,147.95,14.33008292]
[1641473795719,22.571606,148.01,147.95,14.33008292]
[1641473795920,22.571606,148.01,147.96,14.33008292]
[1641473796818,3.35786266,148.0,147.94,22.6927488]
[1641473797719,22.571606,148.01,147.95,14.33008292]
[1641473798721,14.32786487,148.03,147.95,18.33008292]
[1641473798921,14.32786487,148.03,147.98,4.0]
[1641473799223,38.16952261,148.06,148.02,24.0]
[1641473799422,28.36952261,148.06,148.03,4.0]
[1641473799626,10.80952261,148.06,148.03,4.0]
[1641473799823,5.15963998,148.07,148.02,26.654]
[1641473800024,1.78952261,148.1,148.02,10.654]
[1641473800222,1.78952261,148.1,148.09,24.0]
[1641473800422,1.78952261,148.1,148.09,6.915]
[1641473800825,27.66479,148.17,148.09,6.915]
[1641473802023,68.5316,148.22,148.12,4.0]
[1641473802224,68.5316,148.22,148.12,6.363]
[1641473802625,68.5316,148.22,148.13,27.66479]
[1641473803224,27.66479,148.24,148.15,4.0]
[1641473803424,27.66479,148.24,148.15,5.343]
[1641473803624,27.66479,148.24,148.15,9.343]
[1641473803825,27.66479,148.24,148.16,24.0]
[1641473804026,27.66479,148.24,148.18,24.0]
[1641473804225,27.66479,148.24,148.2,4.0]
[1641473804427,66.5381,148.31,148.19,4.0]
[1641473804630,66.5381,148.31,148.18,26.697]
[1641473804631,27.66479,148.3,148.23,31.66479]
[1641473804827,27.66479,148.3,148.23,34.78979]
[1641473805627,27.66479,148.3,148.24,20.0]
[1641473805829,15.46871124,148.29,148.24,20.0]
[1641473806229,15.46871124,148.29,148.2,27.66479]
[1641473806829,15.46871124,148.29,148.2,31.66479]
[1641473807929,6.73945276,148.28,148.2,4.0]
[1641473808129,6.73945276,148.28,148.18,47.66479]
[1641473808532,27.66479,148.26,148.18,51.66479]
[1641473809335,27.66479,148.26,148.19,4.0]
[1641473809534,27.66479,148.26,148.19,6.769]
[1641473810236,27.66479,148.26,148.2,4.0]
[1641473810438,15.46871124,148.29,148.21,24.0]
[1641473810635,15.46871124,148.29,148.21,20.0]
[1641473810835,15.46871124,148.25,148.21,21.41925109]
[1641473811735,15.46871124,148.25,148.18,57.66479]
[1641473811935,22.20748276,148.29,148.18,57.66479]
[1641473812135,6.73967987,148.27,148.18,30.0]
[1641473812334,11.25267987,148.27,148.18,10.0]
[1641473812734,11.25267987,148.27,148.15,47.66479]
[1641473812735,27.66479,148.23,148.15,47.66479]
[1641473813736,15.46871124,148.22,148.16,1.41903446]
[1641473814636,27.66479,148.2,148.16,1.41903446]
[1641473815638,3.9999,148.17,148.1,27.66479]
[1641473815838,4.815,148.17,148.15,4.76917198]
[1641473816738,27.66479,148.16,148.15,4.76917198]
[1641473816941,27.66479,148.16,148.11,4.76917198]
[1641473818740,12.11923173,148.15,148.1,4.76917198]
[1641473819340,27.66479,148.16,148.1,4.76917198]
[1641473819542,27.66479,148.16,148.07,41.64479]
[1641473819742,27.66479,148.16,148.07,37.64479]
[1641473820343,27.66479,148.16,148.08,20.0]
[1641473820543,67.965,148.17,148.11,20.0]
[1641473820943,67.965,148.17,148.12,4.0]
[1641473821144,67.965,148.17,148.12,6.991]
[1641473821343,27.66479,148.2,148.12,6.991]
[1641473822243,27.66479,148.2,148.11,20.0]
[1641473822844,161.87399,148.22,148.13,27.66479]
[1641473823045,92.91939,148.22,148.13,32.10879]
[1641473823245,92.91939,148.22,148.15,4.0]
[1641473823447,92.91939,148.22,148.14,20.0]
[1641473824346,92.91939,148.22,148.13,32.10879]
[1641473824747,99.66156907,148.22,148.13,32.10879]
[1641473825348,92.91939,148.22,148.13,36.10879]
[1641473825548,92.91939,148.22,148.13,32.10879]
[1641473826348,12.10998529,148.21,148.17,4.76917198]
[1641473826548,3.9999,148.2,148.17,4.76917198]
[1641473826749,27.66479,148.18,148.17,4.76917198]
[1641473827149,27.66479,148.18,148.16,4.76917198]
[1641473827950,27.66479,148.18,148.14,4.76917198]
[1641473828850,55.32958,148.18,148.14,4.76917198]
[1641473829052,12.11541798,148.17,148.13,4.76917198]
[1641473829851,55.32958,148.18,148.13,4.76917198]
[1641473830052,55.32958,148.18,148.14,4.76917198]
[1641473830256,37.60834811,148.21,148.14,4.76917198]
[1641473830754,65.27313811,148.21,148.14,4.76917198]
[1641473830954,65.27313811,148.21,148.16,4.76917198]
[1641473830955,14.30711797,148.19,148.16,4.76917198]
[1641473831654,14.30711797,148.18,148.15,4.76917198]
[1641473832454,14.30711797,148.17,148.13,4.76917198]
[1641473833255,14.30711797,148.17,148.11,10.1]
[1641473833256,14.30711797,148.17,148.14,4.76917198]
[1641473834157,14.30711797,148.17,148.13,4.76917198]
[1641473835057,14.30711797,148.17,148.14,4.76917198]
[1641473836861,3.9999,148.15,148.14,4.76917198]
[1641473837063,27.66479,148.16,148.14,7.198e-05]
[1641473837463,27.66479,148.16,148.1,21.27141383]
[1641473838264,14.30711797,148.15,148.08,14.30711797]
[1641473839064,14.30711797,148.14,148.07,35.25141383]
[1641473839864,14.30711797,148.16,148.09,38.30711797]
[1641473840264,14.30711797,148.16,148.12,20.0]
[1641473840467,14.30711797,148.16,148.12,25.821]
[1641473840665,1.797e-05,148.16,148.12,25.821]
[1641473840866,1.797e-05,148.16,148.12,53.48579]
[1641473841065,1.797e-05,148.17,148.12,53.48579]
[1641473841265,1.797e-05,148.17,148.12,57.48579]
[1641473841666,1.797e-05,148.17,148.13,4.0]
[1641473841866,37.60834811,148.2,148.15,20.0]
[1641473842065,27.66479,148.22,148.15,26.341]
[1641473843266,27.66479,148.22,148.15,20.0]
[1641473844869,27.66479,148.22,148.13,55.98566946]
[1641473845367,34.40696907,148.22,148.13,6.96429586]
[1641473845568,27.66479,148.22,148.13,6.96429586]
[1641473846368,12.11302674,148.21,148.13,6.96429586]
[1641473847170,27.66479,148.22,148.12,57.92479]
[1641473847369,27.66479,148.22,148.12,62.91679]
[1641473847971,27.66479,148.22,148.13,6.96429586]
[1641473848771,27.66479,148.22,148.13,13.72529586]
[1641473848972,27.66479,148.22,148.17,20.0]
[1641473849172,27.66479,148.24,148.17,24.986]
[1641473849372,37.60834811,148.25,148.17,24.986]
[1641473849773,37.60834811,148.26,148.17,24.986]
[1641473849972,37.60834811,148.26,148.17,28.986]
[1641473850576,37.60834811,148.26,148.17,24.986]
[1641473850778,37.60834811,148.28,148.2,20.0]
[1641473850975,37.60834811,148.28,148.2,52.72379]
[1641473851181,37.60834811,148.28,148.2,5.059]
[1641473851375,44.34757377,148.28,148.18,6.96429586]
[1641473851576,3.9999,148.25,148.18,6.96429586]
[1641473851775,5.485,148.25,148.14,57.60834811]
[1641473851980,5.485,148.25,148.17,37.60834811]
[1641473852778,37.60834811,148.26,148.17,20.0]
[1641473852977,27.66479,148.25,148.17,20.0]
[1641473853479,91.02719,148.25,148.17,20.0]
[1641473853677,12.10630411,148.24,148.17,20.0]
[1641473854079,3.9999,148.23,148.16,6.96576075]
[1641473855078,3.9999,148.23,148.14,20.0]
[1641473855284,3.9999,148.22,148.12,37.92479]